Cogmind - Beta 16 @@@ ROGUE MODE // 2025.10.29 @ 23:23:47 Player: The Gourd Result: Self-destructed Performance ------------- Evolutions (5) 2500 Regions Visited (13) 2600 Robots Destroyed (153) 765 Value Destroyed (5512) 5512 Prototype IDs (29) 580 Alien Tech Used (0) 0 Bonus (1430) 1430 TOTAL SCORE: 13387 Bonus ------- High Alert Combat Kills 271 Follower Combat Kills 159 Entered Garrisons 200 Used RIF Installer 500 Aligned with FarCom 300 Cogmind --------- Core Integrity 1000/1000 Matter 18/300 Energy 295/295 System Corruption 6% Temperature Cool (9) Movement Treading (239) Ox1 Location -5/Factory Parts ------- > --- POWER (1) -------- Fusion Reactor > --- PROPULSION (5) --- Light Treads Light Treads Advanced Treads Medium Treads Armored Medium Treads > --- UTILITY (7) ------ Improved Cooling System Huge Storage Unit Improved Weapon Cycler Improved Medium Armor Plating Reactive Plating Hacking Suite Hacking Suite > --- WEAPON (4) ------- Hypervelocity Coil Gun Hypervelocity Coil Gun Gauss Cannon > --- INVENTORY (25) --- Fusion Reactor Light Treads Armored Medium Treads High-capacity Matter Pod (59) Precision Energy Filter Advanced ECM Suite Improved Medium Armor Plating Layered Light Armor Plating Layered Light Armor Plating Layered Light Armor Plating Layered Light Armor Plating System Shield System Shield Authchip [Propulsion] Authchip [Propulsion] Authchip [Device] Authchip [Weapon] Relay Coupler [NC] (31) Gauss Cannon Mass Driver Heavy Rocket Launcher Improved Remote Datajack CPS Tube (2) CPS Tube (2) Power Sword Peak State ------------ > --- POWER ------------ Fusion Reactor > --- PROPULSION ------- Light Treads Light Treads Advanced Treads Medium Treads Armored Medium Treads > --- UTILITY ---------- Improved Cooling System Huge Storage Unit Improved Weapon Cycler Improved Medium Armor Plating Reactive Plating Hacking Suite Hacking Suite > --- WEAPON ----------- Hypervelocity Coil Gun Hypervelocity Coil Gun Gauss Cannon Gauss Cannon > --- INVENTORY -------- Fusion Reactor Light Treads Light Treads High-capacity Matter Pod Precision Energy Filter Advanced ECM Suite Improved Medium Armor Plating Layered Light Armor Plating Layered Light Armor Plating Layered Light Armor Plating Layered Light Armor Plating System Shield System Shield Authchip [Propulsion] Authchip [Propulsion] Authchip [Device] Authchip [Weapon] Relay Coupler [NC] Mass Driver Heavy Rocket Launcher Improved Remote Datajack CPS Tube CPS Tube Power Sword [Rating: 75] Favorites ----------- Power Improved Deuterium Engine Engine Improved Deuterium Engine Reactor Fusion Reactor Propulsion Light Treads Treads Light Treads Wheel Compact Wheel Utility Hacking Suite Device Seismic Detector Storage Huge Storage Unit Hackware Hacking Suite Protection Improved Medium Armor Plating Weapon Gauss Cannon Ballistic Gun Heavy Assault Rifle Ballistic Cannon Gauss Cannon Launcher Mini Grenade Launcher Special Weapon Mining Laser Slashing Weapon Power Sword Special Melee Weapon Datajack Build | -11 -10 -10 -9 -9 -9 -8 -8 -8 -7 -7 -7 -7 -5 ------- Run | Yrd Mat Min Mat Min Exi Min Mat Gar Fac Sto Rec Scr Fac Slots Evolved 10 | . . . 2 . . . 2 . 2 . . . 4 Power . | . . . . . . . . . . . . . . Propulsion 3 | . . . 1 . . . 1 . . . . . 1 Utility 5 | . . . 1 . . . . . 2 . . . 2 Weapon 2 | . . . . . . . 1 . . . . . 1 Parts Attached 86 | 8 11 . 22 9 . . 5 8 4 6 . 1 12 Power 10 | 1 1 . 4 1 . . . . 1 1 . . 1 Engine 9 | 1 1 . 4 1 . . . . 1 1 . . . Core . | . . . . . . . . . . . . . . Reactor 1 | . . . . . . . . . . . . . 1 Propulsion 24 | 3 . . 5 3 . . 1 3 . 4 . 1 4 Treads 22 | 2 . . 4 3 . . 1 3 . 4 . 1 4 Leg . | . . . . . . . . . . . . . . Wheel 2 | 1 . . 1 . . . . . . . . . . Hover . | . . . . . . . . . . . . . . Flight . | . . . . . . . . . . . . . . Utility 21 | 2 4 . 4 2 . . 2 1 2 . . . 4 Device 5 | 1 1 . . . . . . . . . . . 3 Storage 6 | 1 3 . 1 . . . 1 . . . . . . Processor . | . . . . . . . . . . . . . . Hackware 2 | . . . 1 . . . . . 1 . . . . Protection 8 | . . . 2 2 . . 1 1 1 . . . 1 Artifact . | . . . . . . . . . . . . . . Weapon 31 | 2 6 . 9 3 . . 2 4 1 1 . . 3 Energy Gun . | . . . . . . . . . . . . . . Energy Cannon . | . . . . . . . . . . . . . . Ballistic Gun 9 | 2 . . 2 3 . . . . . . . . 2 Ballistic Cannon 13 | . 4 . 5 . . . 1 3 . . . . . Launcher 4 | . . . 1 . . . 1 . . 1 . . 1 Special Weapon 2 | . 1 . 1 . . . . . . . . . . Impact Weapon . | . . . . . . . . . . . . . . Slashing Weapon 2 | . . . . . . . . 1 1 . . . . Piercing Weapon . | . . . . . . . . . . . . . . Special Melee Weapon 1 | . 1 . . . . . . . . . . . . Unidentified Prototypes 6 | . . . 3 . . . 1 . . . . . 2 Parts Lost 22 | . 1 . 9 8 . . . 1 . 2 . . 1 Power 2 | . . . 1 1 . . . . . . . . . Propulsion 9 | . . . 4 3 . . . . . 2 . . . Utility 6 | . 1 . 2 2 . . . 1 . . . . . Weapon 5 | . . . 2 2 . . . . . . . . 1 Highest Loss Streak 8 | . 1 . 4 8 . . . 1 . 2 . . 1 To Critical Strikes . | . . . . . . . . . . . . . . Average Backups 21 | 3 12 22 23 21 19 22 24 24 21 21 22 22 23 Power 1 | . 1 1 1 2 2 2 1 1 1 2 2 1 1 Propulsion 3 | 1 3 4 4 5 4 4 4 5 5 4 3 3 2 Utility 8 | . 1 5 6 4 3 5 8 12 11 11 12 13 14 Weapon 6 | . 5 11 11 10 10 11 9 5 3 3 3 2 3 Tool/Special . | . . . . . . . . . . . . . . Unused Backups 43 | . 1 . 8 . . . 6 1 . . 3 1 23 Power 5 | . . . 2 . . . . . . . 1 . 2 Propulsion 3 | . 1 . . . . . . . . . . . 2 Utility 22 | . . . 3 . . . 2 . . . 2 1 14 Weapon 9 | . . . 3 . . . 4 1 . . . . 1 Tool/Special 4 | . . . . . . . . . . . . . 4 Average Slot Usage (%) 95 | . 99 100 94 92 100 100 80 82 99 99 100 100 91 Engine 9 | . 14 14 10 8 11 11 9 9 7 7 7 7 3 Treads 29 | . 25 27 24 31 33 33 35 36 30 30 30 30 29 Wheel 1 | . 2 . 7 . . . . . . . . . . Device 4 | . 13 14 1 . . . . . . . . . 6 Storage 9 | . 14 14 11 11 11 11 9 9 7 7 7 7 5 Hackware 9 | . . . 10 11 11 11 9 9 14 15 15 15 11 Protection 8 | . . . 6 7 11 11 9 8 15 15 15 15 12 Ballistic Gun 1 | . 2 . 1 20 22 22 . . . . . . 2 Ballistic Cannon 18 | . 23 28 20 . . . 8 10 18 17 23 23 14 Peak Build Rating 75 | 7 11 12 20 19 21 21 52 52 42 43 43 46 75 Average Rating 32 | 5 9 11 16 16 18 21 49 47 41 42 42 44 57 On Entrance 26 | . 7 11 12 19 17 21 21 52 35 42 43 43 43 Avg Prop Armor Cover (%) 14 | . 11 11 15 . . . . . . . . . . Naked Turns . | . . . . . . . . . . . . . . Heaviest Build 155 | 14 92 92 103 100 94 94 155 155 128 128 128 128 143 Greatest Support 117 | 40 40 40 60 60 60 60 80 80 80 80 80 82 117 Greatest Overweight (x) 31 | . 5 5 31 1 1 1 1 1 1 1 1 1 1 Average Overweight (x) 1 | . . 2 5 1 1 1 1 1 1 1 1 1 1 Largest Inventory Capacity 25 | 8 25 25 25 25 25 25 25 25 25 25 25 25 25 Average Capacity 23 | 7 16 25 25 25 25 25 25 25 25 25 25 25 25 Most Carried 25 | 5 20 25 25 25 24 24 25 25 24 25 25 25 25 Average Carried 22 | 3 12 22 23 21 20 24 24 24 23 23 24 24 23 Final Capacity 25 | 8 25 25 25 25 25 25 25 25 25 25 25 25 25 Final Carried 25 | 5 20 25 25 19 24 24 25 25 24 25 25 23 25 Class Distribution -------------------- 39% | Mutant 30% | Scavenger-Tank 18% | Scavenger-Skirmisher 7% | Scavenger-Mutant Dominant Class ---------------- Mutant | -10/Materials Mutant | -10/Mines Mutant | -9/Materials Scavenger-Mutant | -9/Mines Scavenger-Mutant | -9/Exiles Scavenger-Mutant | -8/Mines Scavenger-Skirmisher | -8/Materials Scavenger-Skirmisher | -8/Garrison Hacker-Mutant | -7/Factory Scavenger-Mutant | -7/Storage Scavenger-Tank | -7/Recycling Scavenger-Tank | -7/Scraptown Scavenger-Tank | -5/Factory Resources | -11 -10 -10 -9 -9 -9 -8 -8 -8 -7 -7 -7 -7 -5 ----------- Run | Yrd Mat Min Mat Min Exi Min Mat Gar Fac Sto Rec Scr Fac Matter Collected 4620 | 372 797 568 839 215 . . 80 188 269 209 220 21 842 Remotely . | . . . . . . . . . . . . . . Salvage Created 4080 | 157 611 247 1070 133 . . 550 529 61 128 . . 594 Parts 248 | 12 39 18 70 4 . . 41 25 3 10 . . 26 Haulers Intercepted 8 | . 2 . 3 . . . 1 . . . . . 2 Recyclers Shooed 4 | . 1 2 . . . . . . . . . . 1 Parts Field Recycled . | . . . . . . . . . . . . . . Retrieved Matter . | . . . . . . . . . . . . . . Parts Self-Destructed . | . . . . . . . . . . . . . . Prevented . | . . . . . . . . . . . . . . Parts Restored . | . . . . . . . . . . . . . . Kills | -11 -10 -10 -9 -9 -9 -8 -8 -8 -7 -7 -7 -7 -5 ------- Run | Yrd Mat Min Mat Min Exi Min Mat Gar Fac Sto Rec Scr Fac Combat Hostiles Destroyed 129 | . 8 5 33 22 . . 16 22 1 6 . . 16 Guns 7 | . 2 . 2 3 . . . . . . . . . Cannons 95 | . 6 5 30 . . . 16 22 1 4 . . 11 AOE 27 | . . . 1 19 . . . . . 2 . . 5 Classes Destroyed 17 | 3 5 . 2 2 . . 1 3 . . . . 1 Worker 8 | 1 . 2 2 . . . 1 . . . . . 2 Builder 4 | . . . 1 . . . 1 . . . . . 2 Tunneler 6 | 4 1 1 . . . . . . . . . . . Hauler 8 | . 2 . 3 . . . 1 . . . . . 2 Recycler 8 | 1 4 2 1 . . . . . . . . . . Operator 2 | . 1 . . . . . 1 . . . . . . Watcher 7 | . 3 . . . . . 4 . . . . . . Swarmer 27 | . 2 3 12 . . . 3 3 . 4 . . . Grunt 42 | . 6 2 13 . . . 6 6 . . . . 9 Duelist 2 | . . . . . . . 2 . . . . . . Protector 1 | . . . . . . . . 1 . . . . . Sentry 24 | . . . 8 . . . 5 7 1 2 . . 1 Demolisher 3 | . . . . 2 . . . 1 . . . . . Specialist 1 | . . . . . . . . 1 . . . . . Hunter 6 | . . . . . . . . 3 . . . . 3 Programmer 4 | . . . . . . . . . . . . . 4 Assembled 20 | . . . . 20 . . . . . . . . . Best Kill Streak 20 | 5 2 3 9 20 . . 6 7 1 5 . . 4 Combat Bots Only 20 | . 2 3 8 20 . . 4 7 1 5 . . 3 Max Kills in Single Turn 7 | 1 2 1 2 7 . . 1 1 1 2 . . 2 Gunslinging . | . . . . . . . . . . . . . . Exploded 7 | . . . 1 7 . . . . . 2 . . 2 Melee . | . . . . . . . . . . . . . . Uniques/NPCs Destroyed . | . . . . . . . . . . . . . . Combat | -11 -10 -10 -9 -9 -9 -8 -8 -8 -7 -7 -7 -7 -5 -------- Run | Yrd Mat Min Mat Min Exi Min Mat Gar Fac Sto Rec Scr Fac Hostile Shots Fired 579 | . 61 23 155 50 . . 24 93 . 92 . . 81 Missed 157 | . 17 4 43 8 . . 6 29 . 26 . . 24 Hits 422 | . 44 19 112 42 . . 18 64 . 66 . . 57 Melee 2 | . . . . 2 . . . . . . . . . Projectile 420 | . 44 19 112 40 . . 18 64 . 66 . . 57 AOE 35 | . . . . 27 . . . 8 . . . . . Critical Strikes 7 | . 1 1 1 . . . . . . 1 . . 3 Part Disruptions 1 | . . . . 1 . . . . . . . . . Damage Taken 6408 | . 502 191 1324 1551 . . 200 1055 . 552 . . 1033 Core 637 | . 59 22 101 258 . . 7 124 . 66 . . . Absorbed by Shields . | . . . . . . . . . . . . . . Ignored by Resistances 190 | . . . . . . . . . . 114 . . 76 Regen/Repaired (Parts) 574 | . 128 . 316 . . . 130 . . . . . . Core Remaining (%) 68 | 100 . 67 . . . 10 . 76 . . . 90 . Volleys Fired 270 | 23 62 16 73 18 . . . 9 2 10 . . 57 Largest 3 | 2 2 2 2 2 . . . 3 3 3 . . 3 Hottest 120 | 40 100 66 100 46 . . . 120 120 120 . . 120 Shots Fired 666 | 46 115 36 141 27 . . 45 77 4 24 . . 151 Gun 99 | 46 26 . 6 21 . . . . . . . . . Cannon 538 | . 79 36 131 . . . 45 77 4 23 . . 143 Launcher 17 | . . . 2 6 . . . . . 1 . . 8 Special 12 | . 10 . 2 . . . . . . . . . . Kinetic 637 | 46 105 36 137 21 . . 45 77 4 23 . . 143 Thermal 12 | . 10 . 2 . . . . . . . . . . Explosive 17 | . . . 2 6 . . . . . 1 . . 8 Electromagnetic . | . . . . . . . . . . . . . . Robot Hit Streak 31 | 5 9 4 10 5 . . 12 31 7 4 . . 12 Robot Miss Streak 7 | 3 3 4 2 3 . . 2 2 . 3 . . 7 Penetration Max 1 | . . . . . . . . . . . . . 1 Secondary Targets . | . . . . . . . . . . . . . . Autonomous 98 | . . . . . . . 45 53 . . . . . Shots Hit Robots 400 | 25 65 16 75 18 . . 35 64 2 13 . . 87 Core Hits 226 | 7 25 11 41 42 . . 16 21 2 8 . . 53 Critical Kills . | . . . . . . . . . . . . . . Critical Parts Destroyed . | . . . . . . . . . . . . . . Critical Strikes 30 | . . . 3 . . . 5 12 . 1 . . 9 Blast 30 | . . . 3 . . . 5 12 . 1 . . 9 Melee Attacks 21 | . 1 . . . . . . 10 2 8 . . . Impact . | . . . . . . . . . . . . . . Slashing 20 | . . . . . . . . 10 2 8 . . . Piercing . | . . . . . . . . . . . . . . Sneak Attacks . | . . . . . . . . . . . . . . Combat Hostiles . | . . . . . . . . . . . . . . Follow-up Attacks . | . . . . . . . . . . . . . . Damage Inflicted 16130 | 278 1155 354 1855 1286 . . 3190 3792 57 512 . . 3651 Guns 811 | 278 245 . 77 211 . . . . . . . . . Cannons 12908 | . 910 354 1672 . . . 3190 3792 57 400 . . 2533 Explosions 2409 | . . . 106 1075 . . . . . 112 . . 1116 Melee . | . . . . . . . . . . . . . . Ramming 2 | . . . . . . . . . . . . . 2 Kinetic 13719 | 278 1155 354 1749 211 . . 3190 3792 57 400 . . 2533 Thermal 49 | . . . . . . . . . . . . . 49 Explosive 2360 | . . . 106 1075 . . . . . 112 . . 1067 Electromagnetic . | . . . . . . . . . . . . . . Impact . | . . . . . . . . . . . . . . Slashing . | . . . . . . . . . . . . . . Piercing . | . . . . . . . . . . . . . . Highest Corruption 6 | . 4 4 . . . . . . . . . . 6 Average Corruption 4 | . 3 4 . . . . . . . . . . 5 Corruption Purged . | . . . . . . . . . . . . . . Corruption Blocked . | . . . . . . . . . . . . . . Effects 110 | . 49 51 . . . . . . . . . . 10 Message Errors 22 | . 7 11 . . . . . . . . . . 4 Matter Fused 31 | . 17 12 . . . . . . . . . . 2 Heat Flow Errors 14 | . 9 4 . . . . . . . . . . 1 Energy Discharges 14 | . 5 7 . . . . . . . . . . 2 Parts Rejected 2 | . 2 . . . . . . . . . . . . Parts Fused 2 | . 1 1 . . . . . . . . . . . Data Loss (minor) 12 | . 4 7 . . . . . . . . . . 1 Data Loss (major) 3 | . 1 2 . . . . . . . . . . . Misfires 7 | . 3 4 . . . . . . . . . . . Alerts 3 | . . 3 . . . . . . . . . . . Overload Shots . | . . . . . . . . . . . . . . Overflow Damage 929 | . 8 3 12 13 . . 549 309 . 4 . . 31 Projectiles 914 | . 8 3 12 . . . 549 309 . 2 . . 31 Explosions 15 | . . . . 13 . . . . . 2 . . . Melee . | . . . . . . . . . . . . . . Knockbacks 68 | . 15 . 17 . . . 9 8 . 3 . . 16 Impact . | . . . . . . . . . . . . . . Kinetic 65 | . 15 . 15 . . . 8 8 . 3 . . 16 Secondary 3 | . . . 2 . . . 1 . . . . . . Self-Inflicted Damage 147 | . . . . 108 . . . . . 39 . . . Shots 5 | . . . . 4 . . . . . 1 . . . Rammed . | . . . . . . . . . . . . . . Targets Rammed 1 | . . . . . . . . . . . . . 1 Kicked . | . . . . . . . . . . . . . . Crushed 1 | . . . . . . . . . . . . . 1 Highest Temperature 377 | . 331 216 130 26 . . . 142 48 340 . . 377 Average Temperature 72 | . 56 96 26 14 . . . 54 25 163 . . 93 Received Heat Transfer 1252 | . 261 66 471 40 . . 36 162 . 90 . . 126 Effects 5 | . 1 . . . . . . . . . . . 4 Shutdowns 1 | . . . . . . . . . . . . . 1 Interference 3 | . . . . . . . . . . . . . 3 Short Circuit 1 | . 1 . . . . . . . . . . . . Siege Activations . | . . . . . . . . . . . . . . Martial Activations . | . . . . . . . . . . . . . . Shielding Activations . | . . . . . . . . . . . . . . Robots Disrupted . | . . . . . . . . . . . . . . Combat Hostiles . | . . . . . . . . . . . . . . Robots Corrupted . | . . . . . . . . . . . . . . Combat Hostiles . | . . . . . . . . . . . . . . Parts Fried . | . . . . . . . . . . . . . . Impact Corruptions . | . . . . . . . . . . . . . . Robots Melted . | . . . . . . . . . . . . . . Combat Hostiles . | . . . . . . . . . . . . . . Parts Melted . | . . . . . . . . . . . . . . Heat Transferred 50 | . . . . . . . . . . . . . 50 Parts Sabotaged . | . . . . . . . . . . . . . . Parts Stolen . | . . . . . . . . . . . . . . Parts Stripped . | . . . . . . . . . . . . . . Power Chain Reactions . | . . . . . . . . . . . . . . Alert | -11 -10 -10 -9 -9 -9 -8 -8 -8 -7 -7 -7 -7 -5 ------- Run | Yrd Mat Min Mat Min Exi Min Mat Gar Fac Sto Rec Scr Fac Maximum Alert Level 3 | . . . 1 . . . 1 3 2 . . . 2 Low Security (%) 78 | 100 100 100 78 100 . 100 90 15 . 100 100 . 42 Level 1 10 | . . . 21 . . . 9 16 . . . . 34 Level 2 8 | . . . . . . . . 41 100 . . . 22 Level 3 2 | . . . . . . . . 26 . . . . . Level 4 . | . . . . . . . . . . . . . . Level 5 . | . . . . . . . . . . . . . . High Security . | . . . . . . . . . . . . . . Max Security . | . . . . . . . . . . . . . . Peak Influence 995 | 10 88 71 263 133 . . 249 995 522 193 14 . 435 Initial 522 | . . 31 16 100 . . . 121 522 193 . . . Average 144 | . 21 14 149 48 . . 106 544 465 66 . . 255 Influence Increases 4383 | 30 467 163 976 83 . . 550 884 33 295 24 . 878 Destroy 0b10 Robot/C 2240 | . 160 100 660 40 . . 320 420 20 140 20 . 360 Destroy 0b10 Robot/NC 220 | 30 55 25 35 . . . 40 5 . . . . 30 Destroy Leader 480 | . 50 20 166 10 . . 90 10 10 40 . . 84 Allied During Kill 56 | . . . . . . . . . . 38 4 . 14 Successful Hack 187 | . 25 . 34 . . . 18 36 . 7 . . 67 Select Force Hacks 60 | . 60 . . . . . . . . . . . . Disable Machine 255 | . 60 15 30 . . . . . . 45 . . 105 Anti-Garrison Action 300 | . . . . . . . . 300 . . . . . Destroy Structure 360 | . 12 3 21 33 . . 7 38 3 25 . . 218 Lose Combat Pursuer 225 | . 45 . 30 . . . 75 75 . . . . . Influence Decreases 4003 | 30 387 201 761 340 . . 363 76 603 720 24 . 498 Entered New Map 1003 | . . 49 26 157 . . . 66 473 232 . . . Time Decay 2639 | 30 387 152 665 103 . . 363 . 130 317 24 . 468 Lost Part 190 | . . . 70 80 . . . 10 . 20 . . 10 Lost Ally 65 | . . . . . . . . . . 45 . . 20 Purge Threat 106 | . . . . . . . . . . 106 . . . Squads Dispatched 16 | . 4 . 3 . . . 1 . . 3 . . 5 Investigation 3 | . 3 . . . . . . . . . . . . Extermination 3 | . . . . . . . . . . 1 . . 2 Reinforcement 10 | . 1 . 3 . . . 1 . . 2 . . 3 Assault . | . . . . . . . . . . . . . . Garrison . | . . . . . . . . . . . . . . Intercept . | . . . . . . . . . . . . . . Searches Triggered . | . . . . . . . . . . . . . . Construction Impeded 2 | . . . . . . . . . . 1 . . 1 Haulers Reinforced 1 | . . . . . . . . . . . . . 1 Active Scanning Responses . | . . . . . . . . . . . . . . Cargo Convoy Interrupts . | . . . . . . . . . . . . . . Stealth | -11 -10 -10 -9 -9 -9 -8 -8 -8 -7 -7 -7 -7 -5 --------- Run | Yrd Mat Min Mat Min Exi Min Mat Gar Fac Sto Rec Scr Fac Distress Signals 17 | . 7 . 5 . . . 3 . 1 . . . 1 Communications Jammed . | . . . . . . . . . . . . . . Distress Signals . | . . . . . . . . . . . . . . Times Spotted 177 | . 22 5 50 22 . . 21 26 2 7 . . 22 Peak Tracking Total 20 | . 3 3 9 20 . . 6 6 2 5 . . 6 Tactical Retreats 8 | . 3 . 1 . . . 2 2 . . . . . Traps | -11 -10 -10 -9 -9 -9 -8 -8 -8 -7 -7 -7 -7 -5 ------- Run | Yrd Mat Min Mat Min Exi Min Mat Gar Fac Sto Rec Scr Fac Traps Triggered 9 | . 3 . 1 . . . . 5 . . . . . Indirectly . | . . . . . . . . . . . . . . Trap Hack Attempts . | . . . . . . . . . . . . . . Triggered . | . . . . . . . . . . . . . . Disarmed . | . . . . . . . . . . . . . . Reprogrammed . | . . . . . . . . . . . . . . Reused . | . . . . . . . . . . . . . . Traps Extracted . | . . . . . . . . . . . . . . Installed . | . . . . . . . . . . . . . . Triggered . | . . . . . . . . . . . . . . Machines | -11 -10 -10 -9 -9 -9 -8 -8 -8 -7 -7 -7 -7 -5 ---------- Run | Yrd Mat Min Mat Min Exi Min Mat Gar Fac Sto Rec Scr Fac Machines Disabled 21 | . 4 1 2 . . . . 4 . 3 . . 7 Max in Single Turn 3 | . 1 1 1 . . . . 1 . 1 . . 3 Garrison Relay 4 | . . . . . . . . 4 . . . . . Machines Repaired . | . . . . . . . . . . . . . . Machines Dismantled . | . . . . . . . . . . . . . . Machines Sabotaged . | . . . . . . . . . . . . . . Overloaded Fab Kills . | . . . . . . . . . . . . . . Hacking | -11 -10 -10 -9 -9 -9 -8 -8 -8 -7 -7 -7 -7 -5 --------- Run | Yrd Mat Min Mat Min Exi Min Mat Gar Fac Sto Rec Scr Fac Machines Accessed 38 | . 10 . 7 . 2 . 6 4 . 3 . . 6 Terminals 25 | . 7 . 5 . . . 4 4 . 3 . . 2 Fabricators 2 | . . . . . . . . . . . . . 2 Repair Stations 5 | . 1 . 2 . . . 1 . . . . . 1 Recycling Units 2 | . 2 . . . . . . . . . . . . Scanalyzers 1 | . . . . . . . . . . . . . 1 Garrison Access 1 | . . . . . . . 1 . . . . . . Total Hacks 101 | . 24 . 35 . 2 . 13 6 . 8 . . 13 Successful 71 | . 18 . 25 . 2 . 9 4 . 5 . . 8 Failed 30 | . 6 . 10 . . . 4 2 . 3 . . 5 Catastrophic 3 | . . . 1 . . . . . . 1 . . 1 Database Lockouts . | . . . . . . . . . . . . . . Manual 65 | . 21 . 18 . 1 . 11 . . 8 . . 6 Terminals 66 | . 20 . 18 . . . 10 6 . 8 . . 4 Fabricators 3 | . . . . . . . . . . . . . 3 Repair Stations 24 | . 2 . 17 . . . 2 . . . . . 3 Recycling Units 2 | . 2 . . . . . . . . . . . . Scanalyzers 3 | . . . . . . . . . . . . . 3 Garrison Access 1 | . . . . . . . 1 . . . . . . Terminal Hacks 17 | . 4 . 3 . 2 . . 4 . 4 . . . Record 2 | . . . . . 1 . . . . 1 . . . Level Access Points 1 | . . . . . . . . . . 1 . . . Branch Access Points 1 | . . . . . . . . . . 1 . . . Emergency Access Points 1 | . . . . . . . . 1 . . . . . Terminal Index 2 | . 1 . 1 . . . . . . . . . . Recycling Unit Index 1 | . 1 . . . . . . . . . . . . Unreport Threat 1 | . . . . . . . . . . 1 . . . Recall Investigation 2 | . 2 . . . . . . . . . . . . Hauler Manifests 1 | . . . 1 . . . . . . . . . . Registered Components 1 | . . . 1 . . . . . . . . . . Garrison Registry 1 | . . . . . . . . 1 . . . . . Patrol Navigation 1 | . . . . . . . . 1 . . . . . Security Stations 1 | . . . . . . . . 1 . . . . . Proto ID Catalog 1 | . . . . . 1 . . . . . . . . Fabricator Hacks 1 | . . . . . . . . . . . . . 1 Network Status 1 | . . . . . . . . . . . . . 1 Repair Station Hacks 17 | . 2 . 12 . . . 2 . . . . . 1 Scan Component 10 | . 1 . 7 . . . 1 . . . . . 1 Repair 7 | . 1 . 5 . . . 1 . . . . . . Recycling Unit Hacks . | . . . . . . . . . . . . . . Scanalyzer 2 | . . . . . . . . . . . . . 2 Retrieve Study 2 | . . . . . . . . . . . . . 2 Garrison Access Hacks 1 | . . . . . . . 1 . . . . . . Unlock Access 1 | . . . . . . . 1 . . . . . . Unauthorized Hacks 32 | . 12 . 10 . . . 5 . . 1 . . 4 Terminals 28 | . 10 . 10 . . . 5 . . 1 . . 2 Assimilate 2 | . . . 1 . . . 1 . . . . . . Botnet 9 | . 3 . 3 . . . . . . 1 . . 2 Operators 2 | . 1 . 1 . . . . . . . . . . Skim 15 | . 6 . 5 . . . 4 . . . . . . Fabricators 2 | . . . . . . . . . . . . . 2 Fabnet 2 | . . . . . . . . . . . . . 2 Repair Stations . | . . . . . . . . . . . . . . Recycling Units 2 | . 2 . . . . . . . . . . . . Tunnel 2 | . 2 . . . . . . . . . . . . Scanalyzers . | . . . . . . . . . . . . . . Garrison Access . | . . . . . . . . . . . . . . Data Cores Recovered . | . . . . . . . . . . . . . . Used . | . . . . . . . . . . . . . . Hacking Detections 29 | . 7 . 6 . . . 6 2 . 3 . . 5 Full Trace Events . | . . . . . . . . . . . . . . Feedback Events . | . . . . . . . . . . . . . . Feedback Blocked . | . . . . . . . . . . . . . . Robot Schematics Acquired . | . . . . . . . . . . . . . . Robots Built . | . . . . . . . . . . . . . . Authchips . | . . . . . . . . . . . . . . Time . | . . . . . . . . . . . . . . Total Robot Build Rating . | . . . . . . . . . . . . . . Part Schematics Acquired . | . . . . . . . . . . . . . . Parts Built . | . . . . . . . . . . . . . . Authchips . | . . . . . . . . . . . . . . Time . | . . . . . . . . . . . . . . Total Part Build Rating . | . . . . . . . . . . . . . . Part Studies Acquired 2 | . . . . . . . . . . . . . 2 Parts Repaired 7 | . 1 . 5 . . . 1 . . . . . . Time 182 | . 26 . 130 . . . 26 . . . . . . Parts Recycled . | . . . . . . . . . . . . . . Recycled Matter . | . . . . . . . . . . . . . . Retrieved Matter . | . . . . . . . . . . . . . . Retrieved Components . | . . . . . . . . . . . . . . Parts Scanalyzed . | . . . . . . . . . . . . . . Part Schematics Acquired . | . . . . . . . . . . . . . . Parts Damaged . | . . . . . . . . . . . . . . Bothacking | -11 -10 -10 -9 -9 -9 -8 -8 -8 -7 -7 -7 -7 -5 ------------ Run | Yrd Mat Min Mat Min Exi Min Mat Gar Fac Sto Rec Scr Fac Used RIF Installer 1 | . . . . . . . . 1 . . . . . Robots Hacked . | . . . . . . . . . . . . . . Non-combat . | . . . . . . . . . . . . . . Combat . | . . . . . . . . . . . . . . Robot Hacks Applied . | . . . . . . . . . . . . . . Relay Couplers Released 14 | . . . . . . . . 14 . . . . . Machine Destruction 14 | . . . . . . . . 14 . . . . . Fabnet Peak Effective % . | . . . . . . . . . . . . . . Robots Rewired . | . . . . . . . . . . . . . . Allies Hacked . | . . . . . . . . . . . . . . Hacks Repelled . | . . . . . . . . . . . . . . Allies | -11 -10 -10 -9 -9 -9 -8 -8 -8 -7 -7 -7 -7 -5 -------- Run | Yrd Mat Min Mat Min Exi Min Mat Gar Fac Sto Rec Scr Fac Total Allies 10 | . . . . . . . . . . 10 . . . Largest Group 10 | . . . . . . . . . . 10 4 3 3 Highest-Rated Group 173 | . . . . . . . . . . 173 77 61 61 Highest-Rated Ally 29 | . . . . . . . . . . 29 29 29 29 Total Orders 1 | . . . . . . . . . . . . . 1 ROAM 1 | . . . . . . . . . . . . . 1 Ally Attacks 40 | . . . . . . . . . . 18 9 . 13 Total Damage 440 | . . . . . . . . . . 170 115 . 155 Kills 4 | . . . . . . . . . . 1 1 . 2 Allies Corrupted . | . . . . . . . . . . . . . . Allies Melted . | . . . . . . . . . . . . . . Intel | -11 -10 -10 -9 -9 -9 -8 -8 -8 -7 -7 -7 -7 -5 ------- Run | Yrd Mat Min Mat Min Exi Min Mat Gar Fac Sto Rec Scr Fac Active Infowar (turns) 4922 | 77 2269 2124 452 . . . . . . . . . . Seismic 4922 | 77 2269 2124 452 . . . . . . . . . . Robot Analysis Total . | . . . . . . . . . . . . . . Derelict Logs Recovered 1 | . . 1 . . . . . . . . . . . Drone Launches . | . . . . . . . . . . . . . . Drone Recoveries . | . . . . . . . . . . . . . . Exploration | -11 -10 -10 -9 -9 -9 -8 -8 -8 -7 -7 -7 -7 -5 ------------- Run | Yrd Mat Min Mat Min Exi Min Mat Gar Fac Sto Rec Scr Fac Turns Passed 18531 | 211 2284 2124 2658 273 560 75 1802 1588 275 933 765 3748 1235 Spaces Moved 6738 | 77 915 657 886 71 233 32 659 562 96 222 310 1582 436 Core 2 | 1 . . 1 . . . . . . . . . . Treads 5904 | 74 766 602 259 71 233 32 659 562 96 222 310 1582 436 Legs . | . . . . . . . . . . . . . . Wheels 832 | 2 149 55 626 . . . . . . . . . . Hover . | . . . . . . . . . . . . . . Flight . | . . . . . . . . . . . . . . Fastest Speed 50 | 50 160 175 175 240 240 240 240 240 240 240 240 236 237 Average Speed 231 | 157 162 307 223 240 240 240 240 240 240 240 240 236 237 Slowest Speed 1600 | 160 175 320 1600 240 240 240 240 240 240 240 240 240 239 Overloaded Moves . | . . . . . . . . . . . . . . Propulsion Burnouts . | . . . . . . . . . . . . . . Robots Hopped . | . . . . . . . . . . . . . . Potential Cave-ins 2 | . . . . . . . . . . . . . 2 Cave-ins Triggered . | . . . . . . . . . . . . . . Exploration Rate (%) 44 | 5 95 101 75 11 61 17 47 63 4 30 50 59 11 Regions Visited 13 Branch Regions 7 Pre-discovered Areas 7 | . 2 . 4 . 1 . . . . . . . . Known Exits Taken 7 | . . . 1 . . 1 1 . 1 1 1 1 . Unknown Exits Taken 5 | 1 1 1 . 1 1 . . . . . . . . Scrap Searched 5 | . . 2 . 1 . . . . . . . 2 . Spaces Dug 25 | . 12 . 3 . . . . . 2 8 . . . Terrain Destroyed 247 | . 13 3 12 57 . . 7 8 2 24 . . 121 Melee 10 | . . . . . . . . . 2 8 . . . Projectile 70 | . 13 3 6 . . . 7 8 . 9 . . 24 AOE 167 | . . . 6 57 . . . . . 7 . . 97 Terrain Rammed . | . . . . . . . . . . . . . . Walls Destroyed . | . . . . . . . . . . . . . . Machines Disabled . | . . . . . . . . . . . . . . Actions | -11 -10 -10 -9 -9 -9 -8 -8 -8 -7 -7 -7 -7 -5 --------- Run | Yrd Mat Min Mat Min Exi Min Mat Gar Fac Sto Rec Scr Fac Total 9139 | 122 1580 728 1430 147 235 31 889 777 134 592 334 1591 549 Wait 1753 | 10 548 48 383 48 . . 181 132 28 336 17 . 22 Move 6726 | 76 914 656 885 70 232 31 659 561 95 221 309 1581 436 Hop . | . . . . . . . . . . . . . . Pick Up 108 | 4 20 6 28 1 3 . 19 8 1 3 4 4 7 Fast Attach 42 | 8 7 . 9 1 . . 3 9 . . . . 5 Attach 47 | . 1 . 13 7 . . 3 12 2 3 . . 6 Detach 20 | 1 3 . 2 . . . 2 7 . 1 . . 4 Swap 49 | . 14 1 13 2 . . 2 3 3 7 . 1 3 Drop 94 | . 10 1 24 . . . 20 18 1 3 4 5 8 Fire 270 | 23 62 16 73 18 . . . 9 2 10 . . 57 Melee 21 | . 1 . . . . . . 10 2 8 . . . Ram . | . . . . . . . . . . . . . . Kick . | . . . . . . . . . . . . . . Crush 1 | . . . . . . . . . . . . . 1 Escape Stasis 8 | . . . . . . . . 8 . . . . . Rewire . | . . . . . . . . . . . . . . Trap . | . . . . . . . . . . . . . . Miscellaneous . | . . . . . . . . . . . . . . Route ------- -11/Scrapyard -10/Materials (discovered 5 exits: *Mat x3 / [*Min] / [*Sub]) -10/Mines (discovered 3 exits: *Mat x2 / [*Sub]) -9/Materials (discovered 4 exits: *Mat x2 / *Min x2) -9/Mines -9/Exiles (discovered 2 exits: [*Min x2]) -8/Mines -8/Materials (discovered 3 exits: Fac x2 / Gar) -8/Garrison (discovered 3 exits: *Fac x3) -7/Factory -7/Storage (discovered 2 exits: Fac / *Rec) -7/Recycling (discovered 2 exits: *Fac / *Scr) -7/Scraptown -5/Factory History --------- Turn | Location | Event 24 | -11/Scrapyard | Discovered new exit (range 15) 212 | -11/Scrapyard | Entered Materials 308 | -10/Materials | Build established: Mutant 819 | -10/Materials | Discovered new exit (range 11) 891 | -10/Materials | Repaired Lgt. Treads 1240 | -10/Materials | Discovered new exit (range 14) 1284 | -10/Materials | Discovered new exit (range 9) 1517 | -10/Materials | Discovered new exit (range 9) 1759 | -10/Materials | Discovered new exit (range 7) 1917 | -10/Materials | Learned location of 2 exits from Materials 1997 | -10/Materials | Learned Storage terminal intel 2023 | -10/Materials | Learned 2 Storage zone layouts 2037 | -10/Materials | Learned Storage trap positions 2059 | -10/Materials | Learned location of 1 exit from Storage 2133 | -10/Materials | Learned 4 Subcaves zone layouts 2496 | -10/Materials | Entered Mines 2541 | -10/Mines | Met a Derelict bent on vengeance 2619 | -10/Mines | Discovered new exit (range 5) 2855 | -10/Mines | Found a hidden stash of uninstalled traps 2928 | -10/Mines | Discovered new exit (range 7) 3188 | -10/Mines | Discovered new exit (range 7) 3205 | -10/Mines | Learned Materials stockpile data 4620 | -10/Mines | Entered Materials 4620 | -9/Materials | Evolved 2 slots: Propulsion x1, Utility x1 4621 | -9/Materials | Identified exit to Mines 4621 | -9/Materials | Identified exit to Materials 4759 | -9/Materials | Destroyed 8 combat bots 5120 | -9/Materials | Lost 4 parts (1n1u2w) 5285 | -9/Materials | Repaired Lgt. Treads 6606 | -9/Materials | Discovered exit to Materials (range 9) 6662 | -9/Materials | Learned location of Mines (-8) 6754 | -9/Materials | Learned location of 1 exit from Recycling 6775 | -9/Materials | Learned location of 1 exit from Recycling 6795 | -9/Materials | Learned location of 2 exits from Materials 7078 | -9/Materials | Repaired Lgt. Treads 7106 | -9/Materials | Repaired Lgt. Treads 7132 | -9/Materials | Repaired Assault Rifle 7158 | -9/Materials | Repaired Lgt. Treads 7245 | -9/Materials | Discovered exit to Mines (range 6) 7278 | -9/Materials | Entered Mines 7279 | -9/Mines | Assembled infested the area 7317 | -9/Mines | Destroyed 20 combat bots 7360 | -9/Mines | Discovered new exit (range 6) 7368 | -9/Mines | Core integrity fell below 50% 7381 | -9/Mines | Core integrity fell below 20% 7415 | -9/Mines | Lost 8 parts (1p3n2u2w) 7539 | -9/Mines | Deemed a non-threat by the Exiles lab entrance 7551 | -9/Mines | Entered Exiles 7568 | -9/Exiles | Build established: Scavenger-Mutant 7583 | -9/Exiles | Discovered new exit (range 15) 7611 | -9/Exiles | Met 8R-AWN 7652 | -9/Exiles | Met EX-HEX 7727 | -9/Exiles | Met EX-BIN 7760 | -9/Exiles | Aligned with FarCom system 7763 | -9/Exiles | Given EX-Vault access code 7818 | -9/Exiles | Opened EX-Vault 7835 | -9/Exiles | Found AWS/Autocannon 7879 | -9/Exiles | Warned to stay clear of 0b10 Research branches 7960 | -9/Exiles | Learned location of Zion (-7) 8092 | -9/Exiles | Discovered new exit (range 10) 8111 | -9/Exiles | Left Exiles lab with AWS/Autocannon 8111 | -9/Exiles | Entered Mines 8155 | -8/Mines | Discovered exit to Materials (range 14) 8186 | -8/Mines | Entered Materials 8186 | -8/Materials | Evolved 2 slots: Propulsion x1, Weapon x1 8187 | -8/Materials | Identified exit to Factory 8478 | -8/Materials | Build established: Scavenger-Skirmisher 9376 | -8/Materials | Repaired Lgt. Treads 9988 | -8/Materials | Identified exit to Garrison 9988 | -8/Materials | Entered Garrison 10032 | -8/Garrison | Discovered exit to Factory (range 59) 10032 | -8/Garrison | Discovered exit to Factory (range 62) 10032 | -8/Garrison | Discovered exit to Factory (range 74) 10048 | -8/Garrison | Triggered checkpoint 10074 | -8/Garrison | Garrison Relay disabled 10310 | -8/Garrison | Triggered checkpoint 10311 | -8/Garrison | Triggered checkpoint 10346 | -8/Garrison | Destroyed 7 combat bots 10565 | -8/Garrison | Learned Factory security intel 10738 | -8/Garrison | Triggered checkpoint 10835 | -8/Garrison | Installed Relay Interface Framework 10906 | -8/Garrison | Triggered checkpoint 10990 | -8/Garrison | Garrison Relay disabled 11152 | -8/Garrison | Triggered checkpoint 11265 | -8/Garrison | Garrison Relay disabled 11357 | -8/Garrison | Garrison Relay disabled 11388 | -8/Garrison | Triggered checkpoint 11397 | -8/Garrison | AWS/Autocannon suddenly broke down 11576 | -8/Garrison | Entered Factory 11576 | -7/Factory | Evolved 2 slots: Utility x2 11577 | -7/Factory | Identified exit to Storage 11851 | -7/Factory | Entered Storage 11852 | -7/Storage | Identified exit to Factory 11853 | -7/Storage | Identified exit to Recycling 11854 | -7/Storage | Loaded intel: 8 trap records 11855 | -7/Storage | Loaded intel: 13 terminal locations 12239 | -7/Storage | Build established: Scavenger-Mutant 12433 | -7/Storage | Assisted by bots powering up and referring to "LRC-V3" 12630 | -7/Storage | Used back door to open Recycling access 12720 | -7/Storage | Lost 5 allies 12784 | -7/Storage | Entered Recycling 12784 | -7/Recycling | Accompanied by 4 allies 12785 | -7/Recycling | Joined Warlord attack on 0b10 via Recycling 12785 | -7/Recycling | Identified exit to Scraptown 12785 | -7/Recycling | Identified exit to Factory 12954 | -7/Recycling | Build established: Scavenger-Tank 13386 | -7/Recycling | Scanned before Scraplab entrance 13502 | -7/Recycling | Entered Scraplab 13549 | -7/Recycling | Entered Scraptown 13549 | -7/Scraptown | Accompanied by 3 allies 14025 | -7/Scraptown | Discovered exit to Factory (range 7) 14256 | -7/Scraptown | Visited Scrapoid Research Area 14325 | -7/Scraptown | Visited Assassins FH 14384 | -7/Scraptown | Heard Great Nut preacher, LISTEN AND RECITE! 14471 | -7/Scraptown | Turned away by UFD registrar 14490 | -7/Scraptown | Visited Awakened 14573 | -7/Scraptown | Visited Junk Repository 14636 | -7/Scraptown | Visited Comm Corps 15397 | -7/Scraptown | Visited IN-MT5's Study 15468 | -7/Scraptown | Visited SPCMW 17297 | -7/Scraptown | Entered Factory 17297 | -5/Factory | Accompanied by 3 allies 17297 | -5/Factory | Evolved 4 slots: Propulsion x1, Utility x2, Weapon x1 18532 | -5/Factory | Self-destructed Last Messages --------------- 18375_ Acquired Mass Driver. 18384_ System corrupted: Component data lost. 18398_ K-01 Serf cleans the Matter Pump. 18424_ 3VQQ,XS3EAIBCTRVPUJ3THBZ7SRSBF/RL 18463_ XXY<>#NBLFCJ4Z:B2Q27N XFX CPE 18476_ Connecting with Scanalyzer... [Achievement: Item+] >>Study(Hyp. Coil Gun) Identified Hyp. Coil Gun... Downloading performance data... Effective improvements: +10% accuracy >>Study(Imp. Remote Datajack) Identified Imp. Remote Datajack... Downloading performance data... Effective improvements: +10% accuracy 18489_ System corrupted: Energy discharge (-97). 18512_ Dropped Lgt. Treads. Map ----- +----------------------------------------------------+ | ?????????????????????????????????????????????????? | | ?????????????????????????????????????????????????? | | ?????????????????????????????????????????????????? | | ?????????????????????????????????????????????????? | | ?????????????????????????????????????????????????? | | ?????????????????????????????????????????????????? | | ?????????????????????????? ???????????????????? | | ???????????????????????? ???????????????????? | | ???????????????????????# ??????????????????? | | ???????????????????????# ??????????????????? | | ???????????????????????#g ?????????????????? | | ???????????????????????#g ??????????????????? | | ???????????????????????#g ??????????????????? | | ???????????????????????# ???????????????????? | | ???????????????????????# ???????????????????? | | ???????????????????????# #???????????????????? | | ???????????????????????# ##################??? | | ???????????????????????# # #?? | | ???????????????????????# # = "" "" #?? | | ???????????????????????# # [ "" "" ??? | | ???????????????????????# + """ """ #?? | | ???????????????????????# # """ """ """ """ #?+ | | ??????????????########## # """S""" """ """ #? | | ??????????????# #k # #? | | ??????????????# # #####+#####+#######? | | ??????????????# # @ #???# #???# #??????? | | ??????????????# # #???# #???# #??????? | | ??????????????# + #???# ##### #??????# | | ??????????????# # #???#^ * #??????# | | ??????????????# # R #???#^^^ #??????# | | ??????????????# ! # #####^^^ ######## | | ??????????????# # """ | | ??????????????########## """ | | ???????????????????????# """ | | ???????????????????????# | | ??????????????##########u | | ?????????????? # #################+### | | ?????????????# """ """ # # ## | | ?????????????# """ """ # # """"" ## "" """ | | ?????????????# """ """ # # "" F" ! ##""" """ | | ?????????????# # # "" "" ##"F """ | | ?????????????# * ""T"" + + ##""" | | ?????????????# """"" # # ## "" | | ?????????????# # # ## | | ?????????????########### # ## | | ?????############ ##################### | | ?????? # #???????????????????? | | ??????? """ # #???????????????????? | | ?????? """ + #???????????????????? | | ?????? """ # #??##???????????????? | +----------------------------------------------------+ Best States ------------- Heat Dissipation 67 Energy Generation 23 Energy Capacity 295 Matter Stores 300 Matter Capacity 300 Sight Range 16 Terrain Scan Density 10 Armor Coverage 600 Resistance: KI 20 Weapon Cycling 20 Evasion (%) 40 Recoil Reduction 5 Energy Filtering 50 Offensive Hacking 20 Authchip Count 4 Item Schematics ----------------- None Robot Schematics ------------------ None Fabricated ------------ Nothing Repaired ---------- Lgt. Treads | 8% | -10/Materials Lgt. Treads | 39% | -9/Materials Lgt. Treads | 37% | -9/Materials Lgt. Treads | 52% | -9/Materials Assault Rifle | 57% | -9/Materials Lgt. Treads | 76% | -9/Materials Lgt. Treads | 7% | -8/Materials Studied --------- Hyp. Coil Gun | -5/Factory | Hacked Imp. Remote Datajack | -5/Factory | Hacked Alien Tech Used ----------------- None Achievements -------------- Civilization 2243 Drive-By Item+ Killing Spree You May Approach The Wall Challenges ------------ None Game ------ Seed SubdwellerDeflectorDeck Manual? 0 Play Time 01:39:25 Cumulative 150.4 hours Start 2025.10.26 @ 13:08:30 End 2025.10.29 @ 23:23:47 Sessions 7 Manual Loads 0 Difficulty Rogue Special Mode None Game No. 103 Rogue 103 Adventurer 0 Explorer 0 Win Type - Total 2 Types 2/0/0/0/0/0/0/0/0/0 Lore% 44 Gallery% 49 Achievement% 36 Wizard Run 0 Options --------- Layout 1 ASCII 0 Keyboard 1 Movement Vi Keybinds 1 Fullscreen 1 Font 32/SmallcapsGlow Map View 50x35 Zoom Use 0% Tactical HUD 1 Map Filters NONE Filters NONE Steam 1 RUN: 3cbe82c8-bf2c-462c-aab2-17c076eb88c1